Workbook

Sheet ÍNDICE

Sheet O

Sheet Demografia O
B1: POPULAÇÃO POR SEXO E FAIXA ETÁRIA - MACRORREGIÃO DE SAÚDE OESTE
B4: População Residente por Faixa Etária e Sexo, 2019
B5: Faixa Etária | C5: Masculino | D5: Feminino | E5: Total | G5: Masculino | H5: Feminino
B6: Menor 1 | C6: 8165 | D6: 8116 | E6: =SUM(C6:D6) -> 16281 | G6: =C6*-1 -> -8165 | H6: =D6 -> 8116
B7: 1 a 4 | C7: 33247 | D7: 32151 | E7: =SUM(C7:D7) -> 65398 | G7: -33247 | H7: =D7 -> 32151
B8: 5 a 9 | C8: 45835 | D8: 43887 | E8: 89722 | G8: -45835 | H8: 43887
B9: 10 a 14 | C9: 50858 | D9: 49486 | E9: 100344 | G9: -50858 | H9: 49486
B10: 15 a 19 | C10: 50384 | D10: 49332 | E10: 99716 | G10: -50384 | H10: 49332
B11: 20 a 29 | C11: 93131 | D11: 87753 | E11: 180884 | G11: -93131 | H11: 87753
B12: 30 a 39 | C12: 70050 | D12: 64349 | E12: 134399 | G12: -70050 | H12: 64349
B13: 40 a 49 | C13: 53763 | D13: 50434 | E13: 104197 | G13: -53763 | H13: 50434
B14: 50 a 59 | C14: 36383 | D14: 34641 | E14: 71024 | G14: -36383 | H14: 34641
B15: 60 a 69 | C15: 24056 | D15: 23908 | E15: 47964 | G15: -24056 | H15: 23908
B16: 70 a 79 | C16: 13295 | D16: 15011 | E16: 28306 | G16: -13295 | H16: 15011
B17: 80 e mais | C17: 6400 | D17: 7951 | E17: 14351 | G17: -6400 | H17: 7951
B18: Total | C18: =SUM(C6:C17) -> 485567 | D18: =SUM(D6:D17) -> 467019 | E18: 952586
B19: Fonte: IBGE, Censos e Estimativas
B22: População Residente por Faixa Etária e Sexo, 2010
B23: Faixa Etária | C23: Masculino | D23: Feminino | E23: Total | G23: Masculino | H23: Feminino
B24: Menor 1 | C24: 7238 | D24: 7175 | E24: =SUM(C24:D24) -> 14413 | G24: =C24*-1 -> -7238 | H24: =D24 -> 7175
B25: 1 a 4 | C25: 30588 | D25: 29274 | E25: =SUM(C25:D25) -> 59862 | G25: =C25*-1 -> -30588 | H25: =D25 -> 29274
B26: 5 a 9 | C26: 41868 | D26: 40120 | E26: 81988 | G26: -41868 | H26: 40120
B27: 10 a 14 | C27: 46801 | D27: 45289 | E27: 92090 | G27: -46801 | H27: 45289
B28: 15 a 19 | C28: 46373 | D28: 45184 | E28: 91557 | G28: -46373 | H28: 45184
B29: 20 a 29 | C29: 84050 | D29: 79448 | E29: 163498 | G29: -84050 | H29: 79448
B30: 30 a 39 | C30: 63161 | D30: 58576 | E30: 121737 | G30: -63161 | H30: 58576
B31: 40 a 49 | C31: 49167 | D31: 46242 | E31: 95409 | G31: -49167 | H31: 46242
B32: 50 a 59 | C32: 33396 | D32: 32418 | E32: 65814 | G32: -33396 | H32: 32418
B33: 60 a 69 | C33: 22581 | D33: 22269 | E33: 44850 | G33: -22581 | H33: 22269
B34: 70 a 79 | C34: 12646 | D34: 13901 | E34: 26547 | G34: -12646 | H34: 13901
B35: 80 e mais | C35: 5926 | D35: 6968 | E35: 12894 | G35: -5926 | H35: 6968
B36: Total | C36: =SUM(C24:C35) -> 443795 | D36: =SUM(D24:D35) -> 426864 | E36: 870659
B37: Fonte: IBGE, Censos e Estimativas
B40: Mulheres em idade fértil (10-49 anos), 2019 | F40: =SUM(D9:D13) -> 301354
B41: Proporção da pop. feminina em idade fértil, 2019 (%) | F41: =IF(D18=0,0,(F40/D18)*100) -> 64.52713915
B42: Fonte: IBGE, Censos e Estimativas

Sheet ex.pobreza O
B1: MUNICÍPIOS DE EXTREMA POBREZA - MACRORREGIÃO DE SAÚDE OESTE
B4: Municípios de extrema pobreza na Macrorregião de Saúde Oeste
B24: Fonte: IBGE, DataSUS. *Dados coletados em 11/04/2022, sujeito a alterações.

Sheet POP.indigena O
B1: POPULAÇÃO INDÍGENA - MACRORREGIÃO DE SAÚDE OESTE
B4: Número Absoluto da População Indígena assistida pelo DSEI residente na macrorregião Oeste, segundo o sexo
B23: Fonte: SESAI, 2020

Sheet Previne brasil O
A1: INDICADORES PREVINE BRASIL - MACRORREGIÃO DE SAÚDE OESTE

Sheet AMS O
A1: POPULAÇÃO COM ASSISTÊNCIA MÉDICA SUPLEMENTAR - MACRORREGIÃO DE SAÚDE OESTE
B4: Percentual de cobertura da população com assistência Médica Suplementar
B21: Fonte: Agencia nacional de Saúde. Dados extraídos em 29 de agosto de 2022.

Sheet SE

Sheet Demografia SE
A1: POPULAÇÃO POR SEXO E FAIXA ETÁRIA - MACRORREGIÃO DE SAÚDE SUDOESTE
B4: População Residente por Faixa Etária e Sexo, 2019
B5: Faixa Etária | C5: Masculino | D5: Feminino | E5: Total | G5: Masculino | H5: Feminino
B6: Menor 1 | C6: 12399 | D6: 11692 | E6: =SUM(C6:D6) -> 24091 | G6: =C6*-1 -> -12399 | H6: =D6 -> 11692
B7: 1 a 4 | C7: 53274 | D7: 51124 | E7: =SUM(C7:D7) -> 104398 | G7: -53274 | H7: =D7 -> 51124
B8: 5 a 9 | C8: 75636 | D8: 72855 | E8: 148491 | G8: -75636 | H8: 72855
B9: 10 a 14 | C9: 83739 | D9: 80509 | E9: 164248 | G9: -83739 | H9: 80509
B10: 15 a 19 | C10: 85731 | D10: 84385 | E10: 170116 | G10: -85731 | H10: 84385
B11: 20 a 29 | C11: 161812 | D11: 159815 | E11: 321627 | G11: -161812 | H11: 159815
B12: 30 a 39 | C12: 125832 | D12: 125868 | E12: 251700 | G12: -125832 | H12: 125868
B13: 40 a 49 | C13: 103763 | D13: 103997 | E13: 207760 | G13: -103763 | H13: 103997
B14: 50 a 59 | C14: 73128 | D14: 77089 | E14: 150217 | G14: -73128 | H14: 77089
B15: 60 a 69 | C15: 52465 | D15: 56849 | E15: 109314 | G15: -52465 | H15: 56849
B16: 70 a 79 | C16: 31357 | D16: 35627 | E16: 66984 | G16: -31357 | H16: 35627
B17: 80 e mais | C17: 15669 | D17: 21412 | E17: 37081 | G17: -15669 | H17: 21412
B18: Total | C18: =SUM(C6:C17) -> 874805 | D18: =SUM(D6:D17) -> 881222 | E18: 1756027
B19: Fonte: IBGE, Censos e Estimativas
B22: População Residente por Faixa Etária e Sexo, 2010
B23: Faixa Etária | C23: Masculino | D23: Feminino | E23: Total | G23: Masculino | H23: Feminino
B24: Menor 1 | C24: 12435 | D24: 11633 | E24: =SUM(C24:D24) -> 24068 | G24: =C24*-1 -> -12435 | H24: =D24 -> 11633
B25: 1 a 4 | C25: 51627 | D25: 49679 | E25: =SUM(C25:D25) -> 101306 | G25: =C25*-1 -> -51627 | H25: =D25 -> 49679
B26: 5 a 9 | C26: 73990 | D26: 71170 | E26: 145160 | G26: -73990 | H26: 71170
B27: 10 a 14 | C27: 81882 | D27: 78844 | E27: 160726 | G27: -81882 | H27: 78844
B28: 15 a 19 | C28: 83717 | D28: 82636 | E28: 166353 | G28: -83717 | H28: 82636
B29: 20 a 29 | C29: 157227 | D29: 155102 | E29: 312329 | G29: -157227 | H29: 155102
B30: 30 a 39 | C30: 122279 | D30: 122159 | E30: 244438 | G30: -122279 | H30: 122159
B31: 40 a 49 | C31: 101016 | D31: 101098 | E31: 202114 | G31: -101016 | H31: 101098
B32: 50 a 59 | C32: 71398 | D32: 75361 | E32: 146759 | G32: -71398 | H32: 75361
B33: 60 a 69 | C33: 51477 | D33: 55434 | E33: 106911 | G33: -51477 | H33: 55434
B34: 70 a 79 | C34: 30810 | D34: 34684 | E34: 65494 | G34: -30810 | H34: 34684
B35: 80 e mais | C35: 15412 | D35: 19648 | E35: 35060 | G35: -15412 | H35: 19648
B36: Total | C36: =SUM(C24:C35) -> 853270 | D36: =SUM(D24:D35) -> 857448 | E36: 1710718
B37: Fonte: IBGE, Censos e Estimativas
B40: Mulheres em idade fértil (10-49 anos), 2019 | F40: =SUM(D9:D13) -> 554574
B41: Proporção da pop. feminina em idade fértil, 2019 (%) | F41: =IF(D18=0,0,(F40/D18)*100) -> 62.93238253
B42: Fonte: IBGE, Censos e Estimativas

Sheet ex.pobreza SE
A1: MUNICÍPIOS DE EXTREMA POBREZA - MACRORREGIÃO DE SAÚDE SUDOESTE
B4: Municípios de extrema pobreza na Macrorregião de Saúde Sudoeste
B22: Fonte: IBGE, DataSUS. *Dados coletados em 11/04/2022, sujeito a alterações.

Sheet AMS SE
A1: POPULAÇÃO COM ASSISTÊNCIA MÉDICA SUPLEMENTAR - MACRORREGIÃO DE SAÚDE SUDOESTE
B4: Percentual de cobertura da população com assistência Médica Suplementar
B21: Fonte: Agencia nacional de Saúde. Dados extraídos em 29 de agosto de 2022.

Sheet auxílio brasil SE
A1: AUXÍLIO BRASIL - MACRORREGIÃO DE SAÚDE SUDOESTE

Sheet nascidos vivos SE
A1: NASCIDOS VIVOS - MACRORREGIÃO DE SAÚDE SUDOESTE
B4: Número de Nascidos Vivos (NV) na Macrorregião de Saúde Sudoeste, 2010-2019
B20: Fonte: Sinasc, Divep/Suvisa/Sesab, 2021. *Dados coletados em 06/09/2021

Sheet EXS

Sheet Demografia EXS
A1: POPULAÇÃO POR SEXO E FAIXA ETÁRIA - MACRORREGIÃO DE SAÚDE EXTREMO SUL
B4: População Residente por Faixa Etária e Sexo, 2019
B5: Faixa Etária | C5: Masculino | D5: Feminino | E5: Total | G5: Masculino | H5: Feminino
B6: Menor 1 | C6: 7198 | D6: 6962 | E6: =SUM(C6:D6) -> 14160 | G6: =C6*-1 -> -7198 | H6: =D6 -> 6962
B7: 1 a 4 | C7: 29374 | D7: 28363 | E7: =SUM(C7:D7) -> 57737 | G7: -29374 | H7: =D7 -> 28363
B8: 5 a 9 | C8: 40715 | D8: 39008 | E8: 79723 | G8: -40715 | H8: 39008
B9: 10 a 14 | C9: 44309 | D9: 42435 | E9: 86744 | G9: -44309 | H9: 42435
B10: 15 a 19 | C10: 40172 | D10: 39670 | E10: 79842 | G10: -40172 | H10: 39670
B11: 20 a 29 | C11: 75572 | D11: 77105 | E11: 152677 | G11: -75572 | H11: 77105
B12: 30 a 39 | C12: 62596 | D12: 63348 | E12: 125944 | G12: -62596 | H12: 63348
B13: 40 a 49 | C13: 48354 | D13: 47733 | E13: 96087 | G13: -48354 | H13: 47733
B14: 50 a 59 | C14: 33619 | D14: 33776 | E14: 67395 | G14: -33619 | H14: 33776
B15: 60 a 69 | C15: 20198 | D15: 20660 | E15: 40858 | G15: -20198 | H15: 20660
B16: 70 a 79 | C16: 11197 | D16: 11170 | E16: 22367 | G16: -11197 | H16: 11170
B17: 80 e mais | C17: 4995 | D17: 5971 | E17: 10966 | G17: -4995 | H17: 5971
B18: Total | C18: =SUM(C6:C17) -> 418299 | D18: =SUM(D6:D17) -> 416201 | E18: 834500
B19: Fonte: IBGE, Censos e Estimativas
B22: População Residente por Faixa Etária e Sexo, 2010
B23: Faixa Etária | C23: Masculino | D23: Feminino | E23: Total | G23: Masculino | H23: Feminino
B24: Menor 1 | C24: 6516 | D24: 6338 | E24: =SUM(C24:D24) -> 12854 | G24: =C24*-1 -> -6516 | H24: =D24 -> 6338
B25: 1 a 4 | C25: 26769 | D25: 25806 | E25: =SUM(C25:D25) -> 52575 | G25: =C25*-1 -> -26769 | H25: =D25 -> 25806
B26: 5 a 9 | C26: 37129 | D26: 35572 | E26: 72701 | G26: -37129 | H26: 35572
B27: 10 a 14 | C27: 40453 | D27: 38724 | E27: 79177 | G27: -40453 | H27: 38724
B28: 15 a 19 | C28: 36667 | D28: 36230 | E28: 72897 | G28: -36667 | H28: 36230
B29: 20 a 29 | C29: 68626 | D29: 69916 | E29: 138542 | G29: -68626 | H29: 69916
B30: 30 a 39 | C30: 56784 | D30: 57396 | E30: 114180 | G30: -56784 | H30: 57396
B31: 40 a 49 | C31: 44033 | D31: 43483 | E31: 87516 | G31: -44033 | H31: 43483
B32: 50 a 59 | C32: 30780 | D32: 30972 | E32: 61752 | G32: -30780 | H32: 30972
B33: 60 a 69 | C33: 18625 | D33: 18985 | E33: 37610 | G33: -18625 | H33: 18985
B34: 70 a 79 | C34: 10342 | D34: 10274 | E34: 20616 | G34: -10342 | H34: 10274
B35: 80 e mais | C35: 4627 | D35: 5159 | E35: 9786 | G35: -4627 | H35: 5159
B36: Total | C36: =SUM(C24:C35) -> 381351 | D36: =SUM(D24:D35) -> 378855 | E36: 760206
B37: Fonte: IBGE, Censos e Estimativas
B40: Mulheres em idade fértil (10-49 anos), 2019 | F40: =SUM(D9:D13) -> 270291
B41: Proporção da pop. feminina em idade fértil, 2019 (%) | F41: =IF(D18=0,0,(F40/D18)*100) -> 64.94241965
B42: Fonte: IBGE, Censos e Estimativas

Sheet ex.pobreza EXS
A1: MUNICÍPIOS DE EXTREMA POBREZA - MACRORREGIÃO DE SAÚDE EXTREMO SUL
B4: Municípios de extrema pobreza na Macrorregião de Saúde Extremo Sul, 2019*
B24: Fonte: IBGE, DataSUS. *Dados coletados em 11/04/2022, sujeito a alterações.

Sheet auxílio brasil EXS
A1: AUXÍLIO BRASIL - MACRORREGIÃO DE SAÚDE EXTREMO SUL
B4: Quantidade de Benefícios Variável Gestante - BVG por ano na Macrorregião Extremo Sul, Bahia e Brasil, 2011-2019.
B5: Macrorregião de Saúde | C5: 2011 | D5: 2012 | E5: 2013 | F5: 2014 | G5: 2015 | H5: 2016 | I5: 2017 | J5: 2018 | K5: 2019 | L5: 2020
B6: Extremo Sul | C6: 1791 | D6: 937 | E6: 1312 | F6: 2128 | G6: 2412 | H6: 3475 | I6: 3988 | J6: 3675 | K6: 3894 | L6: 3669
B7: Fonte: CECAD / CIDADANIA, Matriz de Informação Social (SENARC/SAGI). Dados acessados em 18/05/2022

Sheet nascidos vivos EXS
A1: NASCIDOS VIVOS - MACRORREGIÃO DE SAÚDE EXTREMO SUL
B4: Número de Nascidos Vivos (NV) na Macrorregião de Saúde Extremo Sul, 2010-2019
B20: Fonte: Sinasc, Divep/Suvisa/Sesab, 2021. *Dados coletados em 06/09/2021

Sheet AMS EXS
A1: POPULAÇÃO COM ASSISTÊNCIA MÉDICA SUPLEMENTAR - MACRORREGIÃO DE SAÚDE EXTREMO SUL
B4: Percentual de cobertura da população com assistência Médica Suplementar
B22: Fonte: Agencia nacional de Saúde. Dados extraídos em 29 de agosto de 2022.

Sheet previne brasil EXS
A1: INDICADORES PREVINE BRASIL - MACRORREGIÃO DE SAÚDE EXTREMO SUL
B4: Comparação entre a meta e a média do desempenho dos indicadores do Previne Brasil relacionados à rede materna e infantil - 1º Quadrimestre de 2022
B24: Fonte: CECAD / CIDADANIA, Matriz de Informação Social (SENARC/SAGI). Dados acessados em 18/05/2022

Sheet L

Sheet Demografia L
A1: POPULAÇÃO POR SEXO E FAIXA ETÁRIA - MACRORREGIÃO DE SAÚDE LESTE
B4: População Residente por Faixa Etária e Sexo, 2019
B5: Faixa Etária | C5: Masculino | D5: Feminino | E5: Total | G5: Masculino | H5: Feminino
B6: Menor 1 | C6: 33647 | D6: 32341 | E6: =SUM(C6:D6) -> 65988 | G6: =C6*-1 -> -33647 | H6: =D6 -> 32341
B7: 1 a 4 | C7: 129730 | D7: 125613 | E7: =SUM(C7:D7) -> 255343 | G7: -129730 | H7: =D7 -> 125613
B8: 5 a 9 | C8: 177043 | D8: 171126 | E8: 348169 | G8: -177043 | H8: 171126
B9: 10 a 14 | C9: 204106 | D9: 198047 | E9: 402153 | G9: -204106 | H9: 198047
B10: 15 a 19 | C10: 202587 | D10: 204462 | E10: 407049 | G10: -202587 | H10: 204462
B11: 20 a 29 | C11: 455213 | D11: 490839 | E11: 946052 | G11: -455213 | H11: 490839
B12: 30 a 39 | C12: 390343 | D12: 437105 | E12: 827448 | G12: -390343 | H12: 437105
B13: 40 a 49 | C13: 294153 | D13: 335893 | E13: 630046 | G13: -294153 | H13: 335893
B14: 50 a 59 | C14: 200758 | D14: 238997 | E14: 439755 | G14: -200758 | H14: 238997
B15: 60 a 69 | C15: 104371 | D15: 134884 | E15: 239255 | G15: -104371 | H15: 134884
B16: 70 a 79 | C16: 48933 | D16: 77196 | E16: 126129 | G16: -48933 | H16: 77196
B17: 80 e mais | C17: 20581 | D17: 43535 | E17: 64116 | G17: -20581 | H17: 43535
B18: Total | C18: =SUM(C6:C17) -> 2261465 | D18: =SUM(D6:D17) -> 2490038 | E18: 4751503
B19: Fonte: IBGE, Censos e Estimativas
B22: População Residente por Faixa Etária e Sexo, 2010
B23: Faixa Etária | C23: Masculino | D23: Feminino | E23: Total | G23: Masculino | H23: Feminino
B24: Menor 1 | C24: 29390 | D24: 28402 | E24: =SUM(C24:D24) -> 57792 | G24: =C24*-1 -> -29390 | H24: =D24 -> 28402
B25: 1 a 4 | C25: 119238 | D25: 115950 | E25: =SUM(C25:D25) -> 235188 | G25: =C25*-1 -> -119238 | H25: =D25 -> 115950
B26: 5 a 9 | C26: 161320 | D26: 156527 | E26: 317847 | G26: -161320 | H26: 156527
B27: 10 a 14 | C27: 186390 | D27: 180943 | E27: 367333 | G27: -186390 | H27: 180943
B28: 15 a 19 | C28: 185098 | D28: 187156 | E28: 372254 | G28: -185098 | H28: 187156
B29: 20 a 29 | C29: 416111 | D29: 448485 | E29: 864596 | G29: -416111 | H29: 448485
B30: 30 a 39 | C30: 356812 | D30: 399760 | E30: 756572 | G30: -356812 | H30: 399760
B31: 40 a 49 | C31: 269285 | D31: 307932 | E31: 577217 | G31: -269285 | H31: 307932
B32: 50 a 59 | C32: 184025 | D32: 219326 | E32: 403351 | G32: -184025 | H32: 219326
B33: 60 a 69 | C33: 95709 | D33: 124022 | E33: 219731 | G33: -95709 | H33: 124022
B34: 70 a 79 | C34: 45024 | D34: 71081 | E34: 116105 | G34: -45024 | H34: 71081
B35: 80 e mais | C35: 19009 | D35: 39399 | E35: 58408 | G35: -19009 | H35: 39399
B36: Total | C36: =SUM(C24:C35) -> 2067411 | D36: =SUM(D24:D35) -> 2278983 | E36: 4346394
B37: Fonte: IBGE, Censos e Estimativas

Sheet ex.pobreza L
A1: MUNICÍPIOS DE EXTREMA POBREZA - MACRORREGIÃO DE SAÚDE LESTE
C5: Municípios de extrema pobreza na Macrorregião de Saúde Leste, 2019*
C22: Fonte: IBGE, DataSUS. *Dados coletados em 11/04/2022, sujeito a alterações.

Sheet AMS. L
A1: POPULAÇÃO COM ASSISTÊNCIA MÉDICA SUPLEMENTAR - MACRORREGIÃO DE SAÚDE LESTE
C5: Percentual de cobertura da população com assistência Médica Suplementar da macrorregião Leste, ano 2019
C22: Fonte: Agencia nacional de Saúde. Dados extraídos em 29 de agosto de 2022.

Sheet ensino fundam. L
B1: ANOS DE ENSINO FUNDAMENTAL - MACRORREGIÃO DE SAÚDE LESTE
H4: Percentual médio de escolarização na Macrorregião Leste, Bahia e Brasil, 2019.
H5: Percentual de escolarização 6 a 14 anos
H6: Média Macrorregião Leste | I6: 0.976
H7: Média Bahia | I7: 0
H8: Média Brasil | I8: 0.997 | M8: Média IDEB | N8: Séries iniciais fundamental | O8: Séries finais fundamental
H9: Fonte: IBGE, 2019
M10: Macrorregião Leste | N10: 4.8 | O10: 3.8
M11: Bahia 2019 | N11: 4.9 | O11: 3.8
M12: Brasil 2019 | N12: 5.7 | O12: 4.6
M13: Fonte: IBGE, 2019

Sheet pop. cad. hip e diab. L
A1: POPULAÇÃO CADASTRADA COM HIPERTENSÃO E DIABETES - MACRORREGIÃO DE SAÚDE LESTE

Sheet N

Sheet NE

Sheet Demografia NE
A1: POPULAÇÃO POR SEXO E FAIXA ETÁRIA - MACRORREGIÃO DE SAÚDE NORDESTE
B4: População Residente por Faixa Etária e Sexo, 2019
B5: Faixa Etária | C5: Masculino | D5: Feminino | E5: Total | G5: Masculino | H5: Feminino
B6: Menor 1 | C6: 6487 | D6: 6558 | E6: =SUM(C6:D6) -> 13045 | G6: =C6*-1 -> -6487 | H6: =D6 -> 6558
B7: 1 a 4 | C7: 27005 | D7: 26286 | E7: =SUM(C7:D7) -> 53291 | G7: -27005 | H7: =D7 -> 26286
B8: 5 a 9 | C8: 39456 | D8: 38001 | E8: 77457 | G8: -39456 | H8: 38001
B9: 10 a 14 | C9: 45576 | D9: 44545 | E9: 90121 | G9: -45576 | H9: 44545
B10: 15 a 19 | C10: 44387 | D10: 42429 | E10: 86816 | G10: -44387 | H10: 42429
B11: 20 a 29 | C11: 76083 | D11: 76810 | E11: 152893 | G11: -76083 | H11: 76810
B12: 30 a 39 | C12: 62115 | D12: 63573 | E12: 125688 | G12: -62115 | H12: 63573
B13: 40 a 49 | C13: 48699 | D13: 50396 | E13: 99095 | G13: -48699 | H13: 50396
B14: 50 a 59 | C14: 32619 | D14: 35474 | E14: 68093 | G14: -32619 | H14: 35474
B15: 60 a 69 | C15: 23901 | D15: 26576 | E15: 50477 | G15: -23901 | H15: 26576
B16: 70 a 79 | C16: 13156 | D16: 16007 | E16: 29163 | G16: -13156 | H16: 16007
B17: 80 e mais | C17: 7122 | D17: 9667 | E17: 16789 | G17: -7122 | H17: 9667
B18: Total | C18: =SUM(C6:C17) -> 426606 | D18: =SUM(D6:D17) -> 436322 | E18: 862928
B19: Fonte: IBGE, Censos e Estimativas
B22: População Residente por Faixa Etária e Sexo, 2010
B23: Faixa Etária | C23: Masculino | D23: Feminino | E23: Total | G23: Masculino | H23: Feminino
B24: Menor 1 | C24: 5960 | D24: 5932 | E24: =SUM(C24:D24) -> 11892 | G24: =C24*-1 -> -5960 | H24: =D24 -> 5932
B25: 1 a 4 | C25: 25649 | D25: 25092 | E25: =SUM(C25:D25) -> 50741 | G25: =C25*-1 -> -25649 | H25: =D25 -> 25092
B26: 5 a 9 | C26: 37267 | D26: 35905 | E26: 73172 | G26: -37267 | H26: 35905
B27: 10 a 14 | C27: 43054 | D27: 42095 | E27: 85149 | G27: -43054 | H27: 42095
B28: 15 a 19 | C28: 41862 | D28: 40169 | E28: 82031 | G28: -41862 | H28: 40169
B29: 20 a 29 | C29: 71648 | D29: 72420 | E29: 144068 | G29: -71648 | H29: 72420
B30: 30 a 39 | C30: 58467 | D30: 59921 | E30: 118388 | G30: -58467 | H30: 59921
B31: 40 a 49 | C31: 45898 | D31: 47543 | E31: 93441 | G31: -45898 | H31: 47543
B32: 50 a 59 | C32: 30748 | D32: 33504 | E32: 64252 | G32: -30748 | H32: 33504
B33: 60 a 69 | C33: 22536 | D33: 24974 | E33: 47510 | G33: -22536 | H33: 24974
B34: 70 a 79 | C34: 12374 | D34: 15018 | E34: 27392 | G34: -12374 | H34: 15018
B35: 80 e mais | C35: 6730 | D35: 8505 | E35: 15235 | G35: -6730 | H35: 8505
B36: Total | C36: =SUM(C24:C35) -> 402193 | D36: =SUM(D24:D35) -> 411078 | E36: 813271
B37: Fonte: IBGE, Censos e Estimativas
B40: Mulheres em idade fértil (10-49 anos), 2019 | F40: =SUM(D9:D13) -> 277753
B41: Proporção da pop. feminina em idade fértil, 2019 (%) | F41: =IF(D18=0,0,(F40/D18)*100) -> 63.65780318
B42: Fonte: IBGE, Censos e Estimativas

Sheet ex.pobreza NE
A1: MUNICÍPIO DE EXTREMA POBREZA - MACRORREGIÃO DE SAÚDE NORDESTE
B4: Municípios de extrema pobreza na Macrorregião de Saúde Nordeste, 2019*
B21: Fonte: IBGE, DataSUS. *Dados coletados em 11/04/2022, sujeito a alterações.

Sheet AMS. NE
B1: POPULAÇÃO COM ASSISTÊNCIA MÉDICA SUPLEMENTAR - MACRORREGIÃO DE SAÚDE NORDESTE
B4: Beneficiários Assistência Médica Suplementar. Macrorregião de Saúde Nordeste, 2019
B21: Fonte: Agencia nacional de Saúde. Dados extraídos em 29 de agosto de 2022.

Sheet NV. NE
A1: NASCIDOS VIVOS - MACRORREGIÃO DE SAÚDE NORDESTE
B5: Nascidos vivos na Macrorregião de Saúde Nordeste
B23: Fonte: SESAB/SUVISA/DIVEP/SINASC - Sistema de Informação sobre Nascidos Vivos.

Sheet CL

Sheet Demografia CL
A1: POPULAÇÃO POR SEXO E FAIXA ETÁRIA - MACRORREGIÃO DE SAÚDE CENTRO LESTE
B4: População Residente por Faixa Etária e Sexo, 2019
B5: Faixa Etária | C5: Masculino | D5: Feminino | E5: Total | G5: Masculino | H5: Feminino
B6: Menor 1 | C6: 16617 | D6: 15898 | E6: =SUM(C6:D6) -> 32515 | G6: =C6*-1 -> -16617 | H6: =D6 -> 15898
B7: 1 a 4 | C7: 69650 | D7: 67338 | E7: =SUM(C7:D7) -> 136988 | G7: -69650 | H7: =D7 -> 67338
B8: 5 a 9 | C8: 99836 | D8: 96331 | E8: 196167 | G8: -99836 | H8: 96331
B9: 10 a 14 | C9: 112585 | D9: 107979 | E9: 220564 | G9: -112585 | H9: 107979
B10: 15 a 19 | C10: 110166 | D10: 107439 | E10: 217605 | G10: -110166 | H10: 107439
B11: 20 a 29 | C11: 200305 | D11: 205084 | E11: 405389 | G11: -200305 | H11: 205084
B12: 30 a 39 | C12: 159139 | D12: 167884 | E12: 327023 | G12: -159139 | H12: 167884
B13: 40 a 49 | C13: 123308 | D13: 131248 | E13: 254556 | G13: -123308 | H13: 131248
B14: 50 a 59 | C14: 84440 | D14: 94397 | E14: 178837 | G14: -84440 | H14: 94397
B15: 60 a 69 | C15: 60563 | D15: 70474 | E15: 131037 | G15: -60563 | H15: 70474
B16: 70 a 79 | C16: 32945 | D16: 42105 | E16: 75050 | G16: -32945 | H16: 42105
B17: 80 e mais | C17: 17430 | D17: 26322 | E17: 43752 | G17: -17430 | H17: 26322
B18: Total | C18: =SUM(C6:C17) -> 1086984 | D18: =SUM(D6:D17) -> 1132499 | E18: 2219483
B19: Fonte: IBGE, Censos e Estimativas
B22: População Residente por Faixa Etária e Sexo, 2010
B23: Faixa Etária | C23: Masculino | D23: Feminino | E23: Total | G23: Masculino | H23: Feminino
B24: Menor 1 | C24: 15767 | D24: 15162 | E24: =SUM(C24:D24) -> 30929 | G24: =C24*-1 -> -15767 | H24: =D24 -> 15162
B25: 1 a 4 | C25: 66055 | D25: 63811 | E25: =SUM(C25:D25) -> 129866 | G25: =C25*-1 -> -66055 | H25: =D25 -> 63811
B26: 5 a 9 | C26: 94822 | D26: 91610 | E26: 186432 | G26: -94822 | H26: 91610
B27: 10 a 14 | C27: 106699 | D27: 102553 | E27: 209252 | G27: -106699 | H27: 102553
B28: 15 a 19 | C28: 104313 | D28: 102127 | E28: 206440 | G28: -104313 | H28: 102127
B29: 20 a 29 | C29: 189456 | D29: 193260 | E29: 382716 | G29: -189456 | H29: 193260
B30: 30 a 39 | C30: 150456 | D30: 157924 | E30: 308380 | G30: -150456 | H30: 157924
B31: 40 a 49 | C31: 116088 | D31: 124037 | E31: 240125 | G31: -116088 | H31: 124037
B32: 50 a 59 | C32: 79399 | D32: 89490 | E32: 168889 | G32: -79399 | H32: 89490
B33: 60 a 69 | C33: 57556 | D33: 66595 | E33: 124151 | G33: -57556 | H33: 66595
B34: 70 a 79 | C34: 31088 | D34: 39805 | E34: 70893 | G34: -31088 | H34: 39805
B35: 80 e mais | C35: 16607 | D35: 23722 | E35: 40329 | G35: -16607 | H35: 23722
B36: Total | C36: =SUM(C24:C35) -> 1028306 | D36: =SUM(D24:D35) -> 1070096 | E36: 2098402
B37: Fonte: IBGE, Censos e Estimativas
B40: Mulheres em idade fértil (10-49 anos), 2019 | F40: =SUM(D9:D13) -> 719634
B41: Proporção da pop. feminina em idade fértil, 2019 (%) | F41: =IF(D18=0,0,(F40/D18)*100) -> 63.54389717
B42: Fonte: IBGE, Censos e Estimativas

Sheet Extrema P. CL
A1: MUNICÍPIO DE EXTREMA POBREZA - MACRORREGIÃO DE SAÚDE CENTRO LESTE
B4: Municípios de extrema pobreza na Macrorregião de Saúde Centro Leste, 2019*
B23: Fonte: IBGE, DataSUS. *Dados coletados em 11/04/2022, sujeito a alterações.

Sheet AMS. CL
A1: POPULAÇÃO COM ASSISTÊNCIA MÉDICA SUPLEMENTAR - MACRORREGIÃO DE SAÚDE CENTRO LESTE
B4: Beneficiários Assistência Médica Suplementar. Macrorregião de Saúde Centro Leste, 2019
B23: Fonte: Agencia nacional de Saúde. Dados extraídos em 29 de agosto de 2022.

Sheet NV. CL
A1: NASCIDOS VIVOS - MACRORREGIÃO DE SAÚDE CENTRO LESTE
B4: Nascidos vivos na Macrorregião de Saúde Centro Leste, 2019
B21: Fonte: SESAB/SUVISA/DIVEP/SINASC - Sistema de Informação sobre Nascidos Vivos.

Sheet Gravidez na adolescencia CL
A1: GRAVIDEZ NA ADOLESCÊNCIA - MACRORREGIÃO DE SAÚDE CENTRO LESTE
B4: Proporção de gravidez na adolescência, nas faixas etárias de 10 a 14 anos e 15 a 19 anos. MRS-CL, 2010-2019. | N4: Nascimento por residência e instrução da mãe. MRS-CL, 2010 a 2019
B18: Fonte: SESAB/SUVISA/DIVEP/SINASC - Sistema de Informação sobre Nascidos Vivos.
N22: Fonte: SESAB/SUVISA/DIVEP/SINASC - Sistema de Informação sobre Nascidos Vivos.

Sheet pop. indigena CL
A1: POPULAÇÃO INDÍGENA ALDEADA - MACRORREGIÃO DE SAÚDE CENTRO LESTE
I4: População indígena por ciclo de vida. Euclides da Cunha, 2021
I5: Ciclos de vida | J5: Euclides da Cunha | K5: Utinga
I6: Infância (< 10 anos) | J6: 161 | K6: 1
I7: Adolescência (≥10 e <20) | J7: 215 | K7: 6
I8: Adulto (≥20 e <60) | J8: 504 | K8: 39
I9: Idoso (≥ 60) | J9: 133 | K9: 1
I10: Fonte: Distrito Sanitário Especial Indigena da Bahia – DSEI/BA/MS

Sheet pop. privada CL
A1: POPULAÇÃO PRIVADA DE LIBERDADE - MACRORREGIÃO DE SAÚDE CENTRO LESTE
C4: População Carcerária da MRS - CL /por Regimes, 2022
C18: Fonte: Secretaria de Administração Penitenciária e Ressocialização Central de Informação e Documentação/BA Acesso em 22/09/2022

Sheet CN

Sheet Demografia CN
A1: POPULAÇÃO POR SEXO E FAIXA ETÁRIA - MACRORREGIÃO DE SAÚDE CENTRO NORTE
B4: População Residente por Faixa Etária e Sexo, 2019
B5: Faixa Etária | C5: Masculino | D5: Feminino | E5: Total | G5: Masculino | H5: Feminino
B6: Menor 1 | C6: 6527 | D6: 6578 | E6: =SUM(C6:D6) -> 13105 | G6: =C6*-1 -> -6527 | H6: =D6 -> 6578
B7: 1 a 4 | C7: 27159 | D7: 26530 | E7: =SUM(C7:D7) -> 53689 | G7: -27159 | H7: =D7 -> 26530
B8: 5 a 9 | C8: 38192 | D8: 36542 | E8: 74734 | G8: -38192 | H8: 36542
B9: 10 a 14 | C9: 42321 | D9: 40624 | E9: 82945 | G9: -42321 | H9: 40624
B10: 15 a 19 | C10: 41261 | D10: 39157 | E10: 80418 | G10: -41261 | H10: 39157
B11: 20 a 29 | C11: 70229 | D11: 69250 | E11: 139479 | G11: -70229 | H11: 69250
B12: 30 a 39 | C12: 57222 | D12: 56616 | E12: 113838 | G12: -57222 | H12: 56616
B13: 40 a 49 | C13: 45196 | D13: 45510 | E13: 90706 | G13: -45196 | H13: 45510
B14: 50 a 59 | C14: 32126 | D14: 33280 | E14: 65406 | G14: -32126 | H14: 33280
B15: 60 a 69 | C15: 23831 | D15: 25042 | E15: 48873 | G15: -23831 | H15: 25042
B16: 70 a 79 | C16: 12935 | D16: 14680 | E16: 27615 | G16: -12935 | H16: 14680
B17: 80 e mais | C17: 6411 | D17: 8715 | E17: 15126 | G17: -6411 | H17: 8715
B18: Total | C18: =SUM(C6:C17) -> 403410 | D18: =SUM(D6:D17) -> 402524 | E18: 805934
B19: Fonte: IBGE, Censos e Estimativas
B22: População Residente por Faixa Etária e Sexo, 2010
B23: Faixa Etária | C23: Masculino | D23: Feminino | E23: Total | G23: Masculino | H23: Feminino
B24: Menor 1 | C24: 6290 | D24: 6008 | E24: =SUM(C24:D24) -> 12298 | G24: =C24*-1 -> -6290 | H24: =D24 -> 6008
B25: 1 a 4 | C25: 26035 | D25: 25744 | E25: =SUM(C25:D25) -> 51779 | G25: =C25*-1 -> -26035 | H25: =D25 -> 25744
B26: 5 a 9 | C26: 36606 | D26: 35092 | E26: 71698 | G26: -36606 | H26: 35092
B27: 10 a 14 | C27: 40595 | D27: 39039 | E27: 79634 | G27: -40595 | H27: 39039
B28: 15 a 19 | C28: 39508 | D28: 37676 | E28: 77184 | G28: -39508 | H28: 37676
B29: 20 a 29 | C29: 67125 | D29: 66251 | E29: 133376 | G29: -67125 | H29: 66251
B30: 30 a 39 | C30: 54624 | D30: 54134 | E30: 108758 | G30: -54624 | H30: 54134
B31: 40 a 49 | C31: 43204 | D31: 43636 | E31: 86840 | G31: -43204 | H31: 43636
B32: 50 a 59 | C32: 30745 | D32: 31985 | E32: 62730 | G32: -30745 | H32: 31985
B33: 60 a 69 | C33: 22836 | D33: 23917 | E33: 46753 | G33: -22836 | H33: 23917
B34: 70 a 79 | C34: 12370 | D34: 14000 | E34: 26370 | G34: -12370 | H34: 14000
B35: 80 e mais | C35: 6151 | D35: 7682 | E35: 13833 | G35: -6151 | H35: 7682
B36: Total | C36: =SUM(C24:C35) -> 386089 | D36: =SUM(D24:D35) -> 385164 | E36: 771253
B37: Fonte: IBGE, Censos e Estimativas

Sheet Extrema p. CN
A1: MUNICÍPIO DE EXTREMA POBREZA - MACRORREGIÃO DE SAÚDE CENTRO NORTE
B3: Municípios de extrema pobreza na Macrorregião de Saúde Centro Norte, 2019*
B22: Fonte: IBGE, DataSUS. *Dados coletados em 11/04/2022, sujeito a alterações.

Sheet AMS.CN
A1: POPULAÇÃO COM ASSISTÊNCIA MÉDICA SUPLEMENTAR - MACRORREGIÃO DE SAÚDE CENTRO NORTE
B3: Proporção de população conforme Assistência Médica Suplementar e SUS dependente no período de 2019
B23: Fonte: Agência Nacional de Saúde (ANS). *Dados coletados em 29/08/2022.

Sheet n°P.R CN
A1: NÚMERO DE PROPRIEDADES RURAIS QUE ADMITIRAM USAR AGROTÓXICO - MACRORREGIÃO DE SAÚDE CENTRO NORTE

Sheet zona rural CN
A1: MUNICÍPIOS COM 30% OU MAIS DE POPULAÇÃO NA ZONA RURAL - MACRORREGIÃO DE SAÚDE CENTRO NORTE

Sheet S

Sheet Demografia Sul
A1: POPULAÇÃO POR SEXO E FAIXA ETÁRIA - MACRORREGIÃO DE SAÚDE SUL
B4: População Residente por Faixa Etária e Sexo, 2019
B5: Faixa Etária | C5: Masculino | D5: Feminino | E5: Total | G5: Masculino | H5: Feminino
B6: Menor 1 | C6: 12498 | D6: 12013 | E6: =SUM(C6:D6) -> 24511 | G6: =C6*-1 -> -12498 | H6: 12013
B7: 1 a 4 | C7: 51838 | D7: 49970 | E7: =SUM(C7:D7) -> 101808 | G7: -51838 | H7: 49970
B8: 5 a 9 | C8: 72857 | D8: 69986 | E8: 142843 | G8: -72857 | H8: 69986
B9: 10 a 14 | C9: 80912 | D9: 77728 | E9: 158640 | G9: -80912 | H9: 77728
B10: 15 a 19 | C10: 78600 | D10: 76980 | E10: 155580 | G10: -78600 | H10: 76980
B11: 20 a 29 | C11: 144234 | D11: 147164 | E11: 291398 | G11: -144234 | H11: 147164
B12: 30 a 39 | C12: 112373 | D12: 115109 | E12: 227482 | G12: -112373 | H12: 115109
B13: 40 a 49 | C13: 90572 | D13: 93969 | E13: 184541 | G13: -90572 | H13: 93969
B14: 50 a 59 | C14: 70660 | D14: 72413 | E14: 143073 | G14: =C14*-1 -> -70660 | H14: 72413
B15: 60 a 69 | C15: 43848 | D15: 46746 | E15: 90594 | G15: -43848 | H15: 46746
B16: 70 a 79 | C16: 26201 | D16: 29549 | E16: 55750 | G16: -26201 | H16: 29549
B17: 80 e mais | C17: 12913 | D17: 17479 | E17: 30392 | G17: -12913 | H17: 17479
B18: Total | C18: =SUM(C6:C17) -> 797506 | D18: =SUM(D6:D17) -> 809106 | E18: 1606612
B19: Fonte: IBGE, Censos e Estimativas
B22: População Residente por Faixa Etária e Sexo, 2010
B23: Faixa Etária | C23: Masculino | D23: Feminino | E23: Total | G23: Masculino | H23: Feminino
B24: Menor 1 | C24: 12246 | D24: 11885 | E24: =SUM(C24:D24) -> 24131 | G24: =C24*-1 -> -12246 | H24: 11885
B25: 1 a 4 | C25: 53027 | D25: 50973 | E25: =SUM(C25:D25) -> 104000 | G25: =C25*-1 -> -53027 | H25: 50973
B26: 5 a 9 | C26: 74042 | D26: 70976 | E26: 145018 | G26: -74042 | H26: 70976
B27: 10 a 14 | C27: 82171 | D27: 79042 | E27: 161213 | G27: -82171 | H27: 79042
B28: 15 a 19 | C28: 79772 | D28: 78365 | E28: 158137 | G28: -79772 | H28: 78365
B29: 20 a 29 | C29: 145592 | D29: 149041 | E29: 294633 | G29: -145592 | H29: 149041
B30: 30 a 39 | C30: 113445 | D30: 116715 | E30: 230160 | G30: -113445 | H30: 116715
B31: 40 a 49 | C31: 91931 | D31: 95474 | E31: 187405 | G31: -91931 | H31: 95474
B32: 50 a 59 | C32: 72013 | D32: 73808 | E32: 145821 | G32: -72013 | H32: 73808
B33: 60 a 69 | C33: 44768 | D33: 47420 | E33: 92188 | G33: -44768 | H33: 47420
B34: 70 a 79 | C34: 26806 | D34: 29957 | E34: 56763 | G34: -26806 | H34: 29957
B35: 80 e mais | C35: 13231 | D35: 16496 | E35: 29727 | G35: -13231 | H35: 16496
B36: Total | C36: =SUM(C24:C35) -> 809044 | D36: =SUM(D24:D35) -> 820152 | E36: =SUM(E24:E35) -> 1629196
B37: Fonte: IBGE, Censos e Estimativas
B40: Mulheres em idade fértil (10-49 anos), 2019 | F40: =SUM(D9:D13) -> 510950
B41: Proporção da pop. feminina em idade fértil, 2019 (%) | F41: =IF(D18=0,0,(F40/D18)*100) -> 63.14994574
B42: Fonte: IBGE, Censos e Estimativas

Sheet Extrema p. Sul
A1: MUNICÍPIO DE EXTREMA POBREZA - MACRORREGIÃO DE SAÚDE SUL
B3: Municípios de extrema pobreza na Macrorregião de Saúde Sul, 2019* | G3: Tipologia municipal segundo classificação do IBGE. Macrorregião de Saúde Sul/Bahia, 2017*
B22: Fonte: IBGE, DataSUS. *Dados coletados em 11/04/2022, sujeito a alterações. | G22: Fonte: IBGE, 2017. *Dados coletados em 04/05/2022, sujeito a alterações

Sheet Auxílio Brasil.sul
A1: AUXÍLIO BRASIL - MACRORREGIÃO DE SAÚDE SUL
B4: Número de habitantes por região de saúde em situação de pobreza, 2020*
B5: Região | C5: Extrema Pobreza | D5: Pobreza | E5: Baixa Renda | F5: Até ½ salário | G5: População CadÚNICO | H5: Pop. Auxílio Brasil
B6: Ilhéus | C6: 130085 | D6: 13252 | E6: 27281 | F6: 21256 | G6: 191874 | H6: 122486
B7: Itabuna | C7: 191974 | D7: 19330 | E7: 55027 | F7: 49328 | G7: 310159 | H7: 193892
B8: Jequié | C8: 200608 | D8: 30392 | E8: 64436 | F8: 44206 | G8: 339642 | H8: 216586
B9: Valença | C9: 141407 | D9: 11376 | E9: 23210 | F9: 12713 | G9: 188706 | H9: 143095
B10: Fonte: Cecad, 2022. *Dados coletados em 18/06/2022, sujeito a alterações.

Sheet Gravidez na Adolescência.sul
A1: GRAVIDEZ NA ADOLESCÊNCIA - MACRORREGIÃO DE SAÚDE SUL
B4: Porcentagem de gravidez na adolescência
B5: Região | C5: Média 2010-2019 (%)
B6: Ilhéus | C6: 26.9
B7: Itabuna | C7: 24.6
B8: Jequié | C8: 23
B9: Valença | C9: 26
B10: Média | C10: 24.8
B11: Fonte: Divep/Suvisa/Sesab.

Sheet AMS.sul
A1: POPULAÇÃO COM ASSISTÊNCIA MÉDICA SUPLEMENTAR - MACRORREGIÃO DE SAÚDE SUL
B3: Proporção de população conforme Assistência Médica Suplementar e SUS dependente no período de 2019
B23: Fonte: Agência Nacional de Saúde (ANS). *Dados coletados em 29/08/2022.

Sheet Previne brasil.sul
A1: INDICADORES PREVINE BRASIL - MACRORREGIÃO DE SAÚDE SUL
B3: Evolução da média do resultado dos indicadores 1, 2,3, 5, 6 e 7 do programa Previne Brasil na macrorregião Sul da Bahia entre o 2º quadrimestre 2020 e 3º quadrimestre 2021
B23: Fonte: SISAB, 2021. *Dados coletados em 27/04/2022 sujeito a alterações.

Sheet Aids menores de 5.Sul
A1: AIDS EM MENORES DE 5 ANOS - MACRORREGIÃO DE SAÚDE SUL
B3: Número de casos de AIDS em menores de 5 anos, por local de residência, na macrorregião de saúde Sul/BA, 2008-2020*
B19: Fonte: Sinan, Divep/Suvisa/Sesab. *Dados coletados em 16/06/2022, sujeito a alterações.

Sheet NV.Sul
A1: NASCIDOS VIVOS - MACRORREGIÃO DE SAÚDE SUL
B4: Número de Nascidos Vivos (NV) na Macrorregião de Saúde Sul, 2010-2019*
B20: Fonte: Sinan, Divep/Suvisa/Sesab, 2021. *Dados coletados em 06/09/2021, sujeito a alterações.

Sheet ÁGUA.sul
A1: QUALIDADE DA ÁGUA E AGROTÓXICOS - MACRORREGIÃO DE SAÚDE SUL
B3: Número de municípios realizando vigilância da qualidade da água para consumo humano na região macro sul no ano de 2021 e 1º quadrimestre de 2022 | L3: Percentual da população atendida por tipos de sistema ou soluções de abastecimento de água na macrorregião de saúde sul em 2022.
B16: Fonte: SISAGUA/NRS Sul/SESAB, 2021. | L16: Fonte: SISAGUA/NRS Sul/SESAB, 2021.
B28: Proporção de análises realizadas em amostras de água para consumo humano quanto aos parâmetros coliformes totais e turbidez na macrorregião de saúde Sul/BA, no período de 2014 a 2021
B43: Fonte: SISAGUA/NRS Sul/SESAB, 2021. Acesso em 14/06/2022
